bitfinex-derivatives/quotes_ETHF0:USTF0_20230902
["timestamp","ask_amount","ask_price","bid_price","bid_amount"]
[1693663690964,16.18864107,1639.8,1639.7,7.10751883]
[1693663691261,11.11414107,1639.8,1639.7,7.10751883]
[1693663691467,13.46236107,1639.8,1639.4,2.34874]
[1693663691765,6.86313,1639.5,1639.4,4.63659]
[1693663691960,12.35613,1639.5,1639.4,4.63659]
[1693663692162,17.2076719,1639.5,1639.4,4.63659]
[1693663693572,17.2076719,1639.5,1639.4,4.83829235]
[1693663694168,17.2076719,1639.5,1639.4,4.63659]
[1693663696569,17.2076719,1639.5,1639.4,4.83829235]
[1693663697474,17.2076719,1639.5,1639.4,4.63659]
[1693663699875,17.2076719,1639.5,1639.4,4.83829235]
[1693663700072,17.2076719,1639.5,1639.4,4.63659]
[1693663700673,17.2076719,1639.5,1639.4,4.83829235]
[1693663701078,17.2076719,1639.5,1639.4,4.63659]
[1693663701575,17.2076719,1639.5,1639.4,4.83829235]
[1693663701872,11.7146719,1639.5,1639.4,4.83829235]
[1693663703379,11.7146719,1639.5,1639.4,4.63659]
[1693663703670,11.7146719,1639.5,1639.4,4.83829235]
[1693663703671,8.84750838,1639.5,1639.4,4.83829235]
[1693663704072,11.7146719,1639.5,1639.4,4.83829235]
[1693663704573,12.20632146,1639.5,1639.4,4.83829235]
[1693663705072,12.20632146,1639.5,1639.4,4.63659]
[1693663706573,12.20632146,1639.5,1639.4,4.83829235]
[1693663708078,9.33915794,1639.5,1639.4,4.83829235]
[1693663709478,12.20632146,1639.5,1639.4,4.83829235]
[1693663709664,12.20632146,1639.5,1639.4,4.63659]
[1693663709866,14.49403146,1639.5,1639.4,2.22861265]
[1693663710071,14.49403146,1639.5,1639.2,10.13019]
[1693663710072,0.0609,1639.4,1639.2,10.13019]
[1693663710273,11.7155119,1639.3,1639.2,10.13019]
[1693663710770,11.7155119,1639.3,1639.2,7.84209]
[1693663711168,8.84834838,1639.3,1639.2,10.13022]
[1693663711776,11.7155119,1639.3,1639.2,10.13022]
[1693663711978,11.7155119,1639.3,1639.2,4.83892235]
[1693663712181,11.7155119,1639.3,1639.2,4.84387824]
[1693663712780,11.7155119,1639.3,1639.2,4.64217589]
[1693663713281,11.7155119,1639.3,1639.2,4.84387824]
[1693663713475,11.7155119,1639.3,1639.2,4.64217589]
[1693663713680,11.7155119,1639.3,1639.2,2.35404589]
[1693663714381,11.7155119,1639.3,1639.2,2.55574824]
[1693663714975,11.7155119,1639.3,1639.2,4.84387824]
[1693663716177,11.7155119,1639.3,1639.2,2.55574824]
[1693663716483,11.7155119,1639.3,1639.2,0.06595589]
[1693663716886,11.7155119,1639.3,1639.2,2.35408589]
[1693663717185,11.7155119,1639.3,1639.2,2.55578824]
[1693663717579,11.7155119,1639.3,1639.2,2.35408589]
[1693663718085,11.7155119,1639.3,1639.2,2.55578824]
[1693663718283,11.7155119,1639.3,1639.2,2.35408589]
[1693663718687,11.7155119,1639.3,1639.2,2.55578824]
[1693663719287,11.7155119,1639.3,1639.2,2.35408589]
[1693663719489,14.0035019,1639.3,1639.2,0.06595589]
[1693663720085,14.0035019,1639.3,1639.2,2.35408589]
[1693663720390,14.0035019,1639.3,1639.2,0.06595589]
[1693663720689,14.0035019,1639.3,1639.2,0.00495589]
[1693663721383,19.0267019,1639.3,1639.2,0.00495589]
[1693663721689,19.0267019,1639.3,1639.2,2.29308589]
[1693663722187,19.0267019,1639.3,1639.2,4.58121589]
[1693663723181,19.0267019,1639.3,1639.2,2.29308589]
[1693663725486,14.0035019,1639.3,1639.2,2.29308589]
[1693663726094,14.49873998,1639.3,1639.2,2.29308589]
[1693663726594,14.49873998,1639.3,1639.2,2.49478824]
[1693663726994,14.49873998,1639.3,1639.2,2.29308589]
[1693663727396,14.49873998,1639.3,1639.2,2.49478824]
[1693663727596,14.49873998,1639.3,1639.2,0.20665824]
[1693663728995,5.07121808,1639.3,1639.2,2.55578824]
[1693663729198,5.07121808,1639.3,1639.2,12.62504824]
[1693663729397,2.28799,1639.3,1639.2,12.62504824]
[1693663729595,2.28799,1639.3,1639.2,14.91317824]
[1693663732000,4.57598,1639.3,1639.2,14.91317824]
[1693663735991,7.44314352,1639.3,1639.2,14.91317824]
[1693663736504,4.57598,1639.3,1639.2,14.91317824]
[1693663736996,7.44314352,1639.3,1639.2,14.91317824]
[1693663737298,4.57598,1639.3,1639.2,14.91317824]
[1693663740901,6.92472,1639.4,1639.2,14.91317824]
[1693663741201,6.92472,1639.4,1639.3,9.13390648]
[1693663742206,6.92472,1639.4,1639.3,9.13866282]
[1693663742699,4.57588,1639.4,1639.3,11.48765282]
[1693663742901,0.49164956,1639.5,1639.4,0.061]
[1693663743105,7.16102,1639.6,1639.4,14.90710235]
[1693663743305,7.16102,1639.6,1639.5,2.26993648]
[1693663743606,7.16102,1639.6,1639.5,9.13306648]
[1693663744308,7.16102,1639.6,1639.5,11.42077648]
[1693663744695,7.64626805,1639.6,1639.5,11.42077648]
[1693663745302,5.35864805,1639.6,1639.5,11.42077648]
[1693663745707,7.64624805,1639.6,1639.5,11.42077648]
[1693663746403,5.35864805,1639.6,1639.5,11.42077648]
[1693663746598,3.07104805,1639.6,1639.5,11.42077648]
[1693663747006,5.35861805,1639.6,1639.5,11.42077648]
[1693663750011,7.64618805,1639.6,1639.5,11.42077648]
[1693663751112,7.64618805,1639.6,1639.5,11.42551638]
[1693663751312,0.48524805,1639.6,1639.5,11.42551638]
[1693663751612,7.08254,1639.7,1639.5,16.91851638]
[1693663751811,7.08254,1639.7,1639.6,5.69470235]
[1693663752113,7.08254,1639.7,1639.6,12.55744235]
[1693663752606,9.37003,1639.7,1639.6,12.55744235]
[1693663754511,9.85204358,1639.7,1639.6,12.55744235]
[1693663756116,12.7192071,1639.7,1639.6,12.55744235]
[1693663756616,9.85204358,1639.7,1639.6,12.55744235]
[1693663757015,12.7192071,1639.7,1639.6,12.55744235]
[1693663757617,9.85204358,1639.7,1639.6,12.55744235]
[1693663757817,12.7192071,1639.7,1639.6,12.55744235]
[1693663758117,9.85204358,1639.7,1639.6,12.55744235]
[1693663758719,12.7192071,1639.7,1639.6,12.55744235]
[1693663759022,9.85204358,1639.7,1639.6,12.55744235]
[1693663760624,12.7192071,1639.7,1639.6,12.55744235]
[1693663761217,9.85204358,1639.7,1639.6,12.55744235]
[1693663765720,7.56450358,1639.7,1639.6,12.55744235]
[1693663766021,7.56450358,1639.7,1639.6,12.56217268]
[1693663766820,10.4316671,1639.7,1639.6,12.56217268]
[1693663767512,7.56450358,1639.7,1639.6,12.56217268]
[1693663768616,5.27700358,1639.7,1639.6,14.84975268]
[1693663768819,5.05694358,1639.7,1639.6,14.84975268]
[1693663769020,0.48201358,1639.7,1639.6,14.91075268]
[1693663769222,9.34184,1639.8,1639.7,0.061]
[1693663769414,9.34184,1639.8,1639.7,9.19325648]
[1693663773526,9.83516925,1639.8,1639.7,9.19325648]
[1693663775220,9.83516925,1639.8,1639.7,6.90581648]
[1693663777327,9.77426925,1639.8,1639.7,6.90581648]
[1693663777528,7.35546925,1639.8,1639.7,9.19325648]
[1693663778124,7.35546925,1639.8,1639.7,6.90581648]
[1693663779822,12.57081277,1639.8,1639.6,5.50687807]
[1693663780221,12.57081277,1639.8,1639.6,7.79444807]
[1693663780425,14.55519115,1639.8,1639.6,7.79444807]
[1693663781929,20.04819115,1639.8,1639.6,2.30144807]
[1693663782430,20.04819115,1639.8,1639.6,0.01387807]
[1693663785733,20.04819115,1639.8,1639.6,2.30144807]
[1693663786030,20.04819115,1639.8,1639.6,0.01387807]
[1693663790738,0.0608,1639.6,1639.4,0.061]
[1693663791031,14.0023819,1639.5,1639.4,0.061]
[1693663791637,14.0023819,1639.5,1639.4,2.34885]
[1693663795839,14.0023819,1639.5,1639.4,0.061]
[1693663796135,14.0023819,1639.5,1639.4,0.0672785]
[1693663799942,14.0631819,1639.5,1639.4,0.0062785]
[1693663800447,19.1883819,1639.5,1639.4,0.0062785]
[1693663801049,19.1883819,1639.5,1639.3,7.78094]
[1693663801050,0.0608,1639.4,1639.3,7.78094]
[1693663801342,9.21217,1639.4,1639.3,7.78094]
[1693663802147,9.21217,1639.4,1639.3,10.27692375]
[1693663802848,9.21217,1639.4,1639.3,10.0752214]
[1693663803243,6.92432,1639.4,1639.3,10.27692375]
[1693663803951,6.92432,1639.4,1639.3,10.0752214]
[1693663804143,6.92432,1639.4,1639.3,10.27692375]
[1693663805048,6.92432,1639.4,1639.3,10.0752214]
[1693663806752,6.92432,1639.4,1639.3,10.27692375]
[1693663807052,6.92432,1639.4,1639.3,10.0752214]
[1693663808562,6.92432,1639.4,1639.3,10.27692375]
[1693663809052,6.92432,1639.4,1639.3,7.98893375]
[1693663809350,9.21217,1639.4,1639.3,7.7872314]
[1693663809558,14.70517,1639.4,1639.3,0.0062914]
[1693663809754,14.70517,1639.4,1639.3,2.2942514]
[1693663810260,14.70517,1639.4,1639.3,0.0062914]
[1693663810959,14.70517,1639.4,1639.3,2.2942514]
[1693663811161,14.70517,1639.4,1639.3,0.0062914]
[1693663811363,14.70517,1639.4,1639.3,2.2942314]
[1693663812864,14.70517,1639.4,1639.3,4.5822014]
[1693663813767,14.70517,1639.4,1639.3,2.2942514]
[1693663814261,14.70517,1639.4,1639.3,2.2942314]
[1693663817471,14.70517,1639.4,1639.3,4.78392375]
[1693663818069,14.70517,1639.4,1639.3,4.5822214]
[1693663818271,12.41732,1639.4,1639.3,4.5822214]
[1693663821073,12.41732,1639.4,1639.3,4.78392375]
[1693663821573,12.41732,1639.4,1639.3,4.5822214]
[1693663825875,12.41732,1639.4,1639.3,4.78392375]
[1693663826875,12.41732,1639.4,1639.3,4.5822214]
[1693663827173,12.35652,1639.4,1639.3,4.6432214]
[1693663827372,0.49888586,1639.5,1639.4,0.061]
[1693663827580,4.63615,1639.6,1639.4,14.70524]
[1693663827782,2.28767,1639.5,1639.4,14.70524]
[1693663828074,4.57535,1639.5,1639.4,22.24186172]
[1693663828980,4.57535,1639.5,1639.4,20.01505172]
[1693663829279,6.86303,1639.5,1639.4,20.01505172]
[1693663837285,4.57535,1639.5,1639.4,20.01505172]
[1693663838385,6.86303,1639.5,1639.4,20.01505172]
[1693663839084,12.01787352,1639.5,1639.4,5.56028289]
[1693663839492,0.0609,1639.4,1639.3,5.493]
[1693663839788,11.19655838,1639.4,1639.3,5.493]
[1693663840180,11.19655838,1639.4,1639.3,7.7889479]
[1693663841991,11.19655838,1639.4,1639.3,2.2959479]
[1693663843092,11.19655838,1639.4,1639.3,2.28799]
[1693663844397,11.19655838,1639.4,1639.3,4.57598]
[1693663845101,11.19655838,1639.4,1639.3,4.58363719]
[1693663850096,11.19655838,1639.4,1639.3,4.78533954]
[1693663850497,11.19655838,1639.4,1639.3,4.58363719]
[1693663853006,4.63654,1639.4,1639.3,7.07332954]
[1693663853195,0.0609,1639.4,1639.3,14.85431954]
[1693663853503,5.06119682,1639.6,1639.5,6.86304]
[1693663853697,5.06119682,1639.6,1639.5,9.33467883]
[1693663853899,5.06119682,1639.6,1639.5,11.62238883]
[1693663855503,7.34883682,1639.6,1639.5,11.62238883]
[1693663856095,5.06119682,1639.6,1639.5,11.63002163]
[1693663856299,7.34877682,1639.6,1639.5,11.63002163]
[1693663857199,7.34874682,1639.6,1639.5,9.34231163]
[1693663861904,7.34874682,1639.6,1639.5,14.83531163]
[1693663863506,12.56439034,1639.6,1639.5,10.0759928]
[1693663863702,18.05739034,1639.6,1639.5,0.0076328]
[1693663863903,12.56439034,1639.6,1639.2,5.493]
[1693663864105,5.493,1639.3,1639.1,11.82392]
[1693663864309,9.73146352,1639.2,1639.1,11.82392]
[1693663864609,6.8643,1639.2,1639.1,12.02562235]
[1693663865509,9.73146352,1639.2,1639.1,12.02562235]
[1693663867208,9.73146352,1639.2,1639.1,9.73741235]
[1693663868114,9.73146352,1639.2,1639.1,12.02568235]
[1693663869130,6.8643,1639.2,1639.1,12.02568235]
[1693663869826,9.73146352,1639.2,1639.1,12.02568235]
[1693663870324,6.8643,1639.2,1639.1,12.02568235]
[1693663870626,9.73146352,1639.2,1639.1,12.02568235]
[1693663871023,6.8643,1639.2,1639.1,12.02568235]
[1693663871420,9.73146352,1639.2,1639.1,12.02568235]
[1693663872117,9.73146352,1639.2,1639.1,12.03305763]
[1693663874429,9.73146352,1639.2,1639.1,11.83135528]
[1693663875531,9.73146352,1639.2,1639.1,12.03305763]
[1693663876124,9.73146352,1639.2,1639.1,11.83135528]
[1693663880434,9.73146352,1639.2,1639.1,12.03305763]
[1693663880625,9.73146352,1639.2,1639.1,9.54308528]
[1693663880831,9.73146352,1639.2,1639.1,6.96758528]
[1693663881228,9.73146352,1639.2,1639.1,9.25585528]
[1693663881633,9.73146352,1639.2,1639.1,9.45755763]
[1693663882033,9.73146352,1639.2,1639.1,14.95055763]
[1693663882231,9.73146352,1639.2,1639.1,12.66228763]
[1693663883137,9.73146352,1639.2,1639.1,14.95053763]
[1693663883533,6.8643,1639.2,1639.1,14.95053763]
[1693663885637,6.8643,1639.2,1639.1,12.56673763]
[1693663885831,9.73146352,1639.2,1639.1,10.27848763]
[1693663886240,9.73146352,1639.2,1639.1,12.56671763]
[1693663887239,6.8643,1639.2,1639.1,12.56671763]
[1693663887442,9.73146352,1639.2,1639.1,10.27848763]
[1693663887940,6.8643,1639.2,1639.1,10.27848763]
[1693663889546,9.73146352,1639.2,1639.1,10.27848763]
[1693663892450,6.8643,1639.2,1639.1,10.27848763]
[1693663892650,6.8643,1639.2,1639.1,12.56675763]
[1693663892949,17.51256352,1639.2,1638.8,8.26860098]
[1693663893249,6.86508,1639.0,1638.8,12.35876]
[1693663893450,6.86508,1639.0,1638.9,0.20170235]
[1693663893647,12.02061352,1639.0,1638.9,2.28851]
[1693663901261,12.02061352,1639.0,1638.9,2.29704921]
[1693663903254,12.02061352,1639.0,1638.9,0.00853921]
[1693663904067,12.02061352,1639.0,1638.8,12.35881]
[1693663904869,1.98437838,1638.9,1638.8,12.35881]
[1693663905069,8.84999838,1638.9,1638.8,12.35881]
[1693663909577,8.84999838,1638.9,1638.8,12.56051235]
[1693663909776,8.84999838,1638.9,1638.8,10.07017]
[1693663913971,6.86562,1638.9,1638.8,10.27187235]
[1693663916276,6.86562,1638.9,1638.8,12.56879194]
[1693663916477,6.86562,1638.9,1638.8,12.36708959]
[1693663917079,5.07690241,1639.0,1638.8,14.85747194]
[1693663917372,4.57682,1639.0,1638.9,14.62855648]
[1693663917578,4.57682,1639.0,1638.9,16.91709648]
[1693663918476,6.8653,1639.0,1638.9,16.91709648]
[1693663919581,6.8653,1639.0,1638.9,14.62855648]
[1693663922685,9.73246352,1639.0,1638.9,14.62855648]
[1693663923083,6.8653,1639.0,1638.9,14.62855648]
[1693663931099,6.8653,1639.0,1638.9,14.63678792]
[1693663935204,9.73246352,1639.0,1638.9,14.63678792]
[1693663935900,12.02094352,1639.0,1638.9,5.50123144]
[1693663936298,12.02094352,1639.0,1638.9,7.78977144]
[1693663936596,12.02094352,1639.0,1638.9,5.50123144]
[1693663936798,12.02094352,1639.0,1638.9,7.78977144]
[1693663937600,12.02094352,1639.0,1638.9,10.07831144]
[1693663938093,12.02094352,1639.0,1638.9,5.50123144]
[1693663938297,17.51394352,1639.0,1638.9,0.00823144]
[1693663938704,20.07264352,1639.0,1638.9,0.00823144]
[1693663939101,20.07264352,1639.0,1638.7,12.3593]
[1693663939302,1.98437838,1638.9,1638.7,10.07052]
[1693663939599,9.79420352,1638.8,1638.7,10.07052]
[1693663939901,9.79420352,1638.8,1638.7,12.35934]
[1693663946107,9.79420352,1638.8,1638.7,12.36759124]
[1693663951203,9.79420352,1638.8,1638.7,10.07877124]
[1693663952702,9.79420352,1638.8,1638.7,4.58577124]
[1693663953305,12.08288352,1638.8,1638.7,4.58577124]
[1693663953804,12.02188352,1638.8,1638.7,4.58577124]
[1693663955009,12.50837362,1638.8,1638.7,4.58577124]
[1693663960004,0.061,1638.7,1638.6,10.07079]
[1693663960209,0.061,1638.7,1638.6,4.57779]
[1693663960210,11.20065838,1638.7,1638.6,4.57779]
[1693663961313,11.20065838,1638.7,1638.6,6.87601237]
[1693663962014,8.91183838,1638.7,1638.6,6.87601237]
[1693663969114,8.91183838,1638.7,1638.6,4.58705237]
[1693663971922,8.91183838,1638.7,1638.6,6.87601237]
[1693663972622,8.91183838,1638.7,1638.6,4.58705237]
[1693663977526,11.20065838,1638.7,1638.6,4.58705237]
[1693663977726,8.91183838,1638.7,1638.6,4.58705237]
[1693663978829,11.20065838,1638.7,1638.6,4.58705237]
[1693663980729,8.91183838,1638.7,1638.6,4.58705237]
[1693663980930,11.20065838,1638.7,1638.6,4.58705237]
[1693663981130,11.20065838,1638.7,1638.6,2.29812237]
[1693663982028,16.69365838,1638.7,1638.6,2.29812237]
[1693663992038,11.20065838,1638.7,1638.6,2.29812237]
[1693664002349,11.20065838,1638.7,1638.6,2.49982472]
[1693664003951,11.20065838,1638.7,1638.6,2.29812237]
[1693664008553,14.47121428,1638.9,1638.6,12.57074472]
[1693664008848,6.86585,1638.9,1638.8,5.493]
[1693664009054,6.86585,1638.9,1638.8,12.8901197]
[1693664009353,6.86585,1638.9,1638.8,12.56980707]
[1693664017055,9.73301352,1638.9,1638.8,12.56980707]
[1693664017456,6.86585,1638.9,1638.8,12.56980707]
[1693664019465,9.73301352,1638.9,1638.8,12.56980707]
[1693664021665,6.86585,1638.9,1638.8,12.56980707]
[1693664024862,9.73301352,1638.9,1638.8,12.56980707]
[1693664025763,9.73301352,1638.9,1638.8,10.07942472]
[1693664025959,12.02164352,1638.9,1638.8,7.79074472]
[1693664026364,12.02164352,1638.9,1638.8,5.50206472]
[1693664026570,12.02164352,1638.9,1638.8,7.79074472]
[1693664026967,12.02164352,1638.9,1638.8,10.07942472]
[1693664027371,12.02164352,1638.9,1638.8,0.00906472]
[1693664027675,12.02164352,1638.9,1638.8,2.29774472]
[1693664028065,12.02164352,1638.9,1638.8,4.58642472]
[1693664029270,12.02164352,1638.9,1638.8,4.57736]
[1693664030074,12.02164352,1638.9,1638.7,12.35922]
[1693664030373,1.98437838,1638.8,1638.7,10.07045]
[1693664030568,8.85041838,1638.8,1638.7,10.07045]
[1693664031276,8.85041838,1638.8,1638.7,10.0803785]
[1693664031769,8.85041838,1638.8,1638.7,10.28208085]
[1693664031971,8.85041838,1638.8,1638.7,4.78908085]
[1693664032872,8.85041838,1638.8,1638.7,4.5873785]
[1693664036178,8.85041838,1638.8,1638.7,6.8761985]
[1693664037777,8.85041838,1638.8,1638.7,7.07790085]
[1693664038079,8.85041838,1638.8,1638.7,6.8761985]
[1693664038676,8.85041838,1638.8,1638.7,7.07790085]
[1693664039977,8.85041838,1638.8,1638.7,6.8761985]
[1693664041678,8.85041838,1638.8,1638.7,7.07790085]
[1693664041878,8.85041838,1638.8,1638.7,6.8761985]
[1693664043477,8.85041838,1638.8,1638.7,7.07790085]
[1693664043680,8.85041838,1638.8,1638.7,6.8761985]
[1693664045082,11.20009838,1638.8,1638.7,0.0099285]
[1693664045478,16.26229838,1638.8,1638.7,0.0099285]
[1693664047176,16.26229838,1638.8,1638.7,2.2987485]
[1693664048277,16.26229838,1638.8,1638.7,0.0099285]
[1693664050483,16.26229838,1638.8,1638.7,2.2987485]
[1693664051888,21.75529838,1638.8,1638.7,2.2987485]
[1693664053083,21.69429838,1638.8,1638.7,4.5875685]
[1693664055686,21.69429838,1638.8,1638.7,4.78927085]
[1693664056695,6.86604,1638.8,1638.7,7.07809085]
[1693664057096,6.86604,1638.8,1638.7,9.36691085]
[1693664057994,6.86604,1638.8,1638.7,7.07809085]
[1693664058998,9.73320352,1638.8,1638.7,6.8763885]
[1693664059500,6.86604,1638.8,1638.7,7.07809085]
[1693664061405,9.73320352,1638.8,1638.7,7.07809085]
[1693664062401,6.86604,1638.8,1638.7,7.07809085]
[1693664062607,9.73320352,1638.8,1638.7,7.07809085]
[1693664064509,6.86604,1638.8,1638.7,7.07809085]
[1693664065706,9.73320352,1638.8,1638.7,7.07809085]
[1693664066509,6.86604,1638.8,1638.7,7.07809085]
[1693664072716,4.57736,1638.8,1638.7,9.36691085]
[1693664073213,6.86604,1638.8,1638.7,9.36691085]
[1693664074317,6.86604,1638.8,1638.7,9.35698235]
[1693664077107,4.57736,1638.8,1638.7,9.35698235]
[1693664081921,4.57736,1638.8,1638.7,14.84998235]
[1693664082322,4.57736,1638.8,1638.7,14.8613398]
[1693664100128,2.28868,1638.8,1638.7,14.8613398]
[1693664100334,11.68752,1638.9,1638.7,14.8613398]
[1693664100533,11.68752,1638.9,1638.8,2.26993648]
[1693664100734,11.68752,1638.9,1638.8,9.13597648]
[1693664101136,11.68752,1638.9,1638.8,9.14732571]
[1693664106344,11.68752,1638.9,1638.8,11.43600571]
[1693664106643,0.48679638,1639.1,1638.8,16.92900571]
[1693664106841,9.31074,1639.2,1639.0,5.493]
[1693664107046,9.31074,1639.2,1639.1,9.13471648]
[1693664107544,9.31074,1639.2,1639.1,9.33641883]
[1693664108145,9.31074,1639.2,1639.1,17.11767883]
[1693664108343,6.86464,1639.2,1639.1,17.11767883]
[1693664108740,4.5764,1639.2,1639.1,17.11767883]
[1693664109055,7.01395,1639.3,1639.1,17.11767883]
[1693664109451,7.51325699,1639.3,1639.1,17.11767883]
[1693664110351,0.49930699,1639.3,1639.1,17.11767883]
[1693664110546,11.91569,1639.4,1639.1,19.59317883]
[1693664111345,11.91569,1639.4,1639.3,6.86394]
[1693664111749,11.91569,1639.4,1639.3,9.33557883]
[1693664111950,11.91569,1639.4,1639.3,14.82857883]
[1693664114150,12.39678285,1639.4,1639.3,14.82857883]
[1693664119157,17.55191637,1639.4,1639.2,4.58740098]
[1693664119550,17.55191637,1639.4,1639.3,0.20170235]
[1693664119757,19.53629475,1639.4,1639.3,2.28798]
[1693664119956,19.53629475,1639.4,1639.3,4.57596]
[1693664121957,25.02929475,1639.4,1639.3,4.57596]
[1693664124860,25.02929475,1639.4,1639.3,6.86394]
[1693664125160,25.02929475,1639.4,1639.3,7.06564235]
[1693664125962,22.16213123,1639.4,1639.3,7.06564235]
[1693664126160,25.02929475,1639.4,1639.3,7.06564235]
[1693664130762,25.02929475,1639.4,1639.1,10.06945]
[1693664131159,25.02929475,1639.4,1639.2,0.01131233]
[1693664131363,25.02929475,1639.4,1639.2,4.58753233]
[1693664133264,25.02929475,1639.4,1639.2,4.78923468]
[1693664134763,25.02929475,1639.4,1639.2,7.07735468]
[1693664134964,25.02929475,1639.4,1639.2,9.34729116]
[1693664138168,25.02929475,1639.4,1639.2,11.63541116]
[1693664138169,17.88978285,1639.4,1639.2,11.63541116]
[1693664138464,17.88978285,1639.4,1639.2,14.00361116]
[1693664139969,10.54992285,1639.4,1639.2,14.00361116]
[1693664140160,5.05692285,1639.4,1639.2,19.49661116]
[1693664142570,7.34489285,1639.4,1639.2,19.49661116]
[1693664143165,5.05692285,1639.4,1639.2,19.49661116]
[1693664152278,7.34489285,1639.4,1639.2,19.49661116]
[1693664157578,10.21205637,1639.4,1639.2,19.49661116]
[1693664160277,7.34489285,1639.4,1639.2,19.49661116]
[1693664160679,9.75189285,1639.4,1639.2,19.49661116]
[1693664161073,7.46392285,1639.4,1639.2,19.49661116]
[1693664164782,9.91192285,1639.4,1639.2,19.49661116]
[1693664164975,12.77908637,1639.4,1639.2,19.49661116]
[1693664165983,9.91192285,1639.4,1639.2,19.49661116]
[1693664171590,9.91192285,1639.4,1639.3,14.6446]
[1693664172181,9.91192285,1639.4,1639.3,14.6577373]
[1693664175488,12.77908637,1639.4,1639.3,14.6577373]
[1693664176391,9.91192285,1639.4,1639.3,14.6577373]
[1693664177099,12.77908637,1639.4,1639.3,14.6577373]
[1693664177296,9.91192285,1639.4,1639.3,14.6577373]
[1693664177495,12.77908637,1639.4,1639.3,14.6577373]
[1693664180498,9.91192285,1639.4,1639.3,14.6577373]
[1693664184408,12.77908637,1639.4,1639.3,14.6577373]
[1693664184713,9.91192285,1639.4,1639.3,14.6577373]
[1693664190408,12.77908637,1639.4,1639.3,14.6577373]
[1693664195111,9.91192285,1639.4,1639.3,14.6577373]
[1693664196515,12.77908637,1639.4,1639.3,14.6577373]
[1693664199117,9.91192285,1639.4,1639.3,14.6577373]
[1693664202817,15.06690637,1639.4,1639.3,5.5061373]
[1693664203026,22.84772637,1639.4,1639.3,0.0131373]
[1693664204324,22.84772637,1639.4,1639.1,12.35741]
[1693664205222,22.84772637,1639.4,1639.2,0.01437485]
[1693664205423,1.98437838,1639.3,1639.2,0.01437485]
[1693664205628,11.13597838,1639.3,1639.2,0.01437485]
[1693664205922,11.13597838,1639.3,1639.2,2.30241485]
[1693664207323,11.13597838,1639.3,1639.2,0.01437485]
[1693664208224,11.13597838,1639.3,1639.2,2.30244485]
[1693664208828,11.13597838,1639.3,1639.2,0.01437485]
[1693664210223,11.13597838,1639.3,1639.2,2.30241485]
[1693664210423,11.13597838,1639.3,1639.2,0.01437485]
[1693664210613,11.13597838,1639.3,1639.2,2.5041172]
[1693664211224,11.13597838,1639.3,1639.2,2.30241485]
[1693664211723,11.13597838,1639.3,1639.2,0.01437485]
[1693664213323,11.13597838,1639.3,1639.1,12.48992]
[1693664213525,8.36016352,1639.2,1639.0,2.28831]
[1693664213825,16.63009838,1639.1,1638.8,4.57712]
[1693664214022,6.86538,1638.9,1638.8,6.86572]
[1693664214326,8.84975838,1638.9,1638.8,6.86572]
[1693664216228,8.84975838,1638.9,1638.8,6.88012823]
[1693664222429,8.84975838,1638.9,1638.8,4.59152823]
[1693664223134,8.84975838,1638.9,1638.8,6.88018823]
[1693664225231,11.13826838,1638.9,1638.8,2.30292823]
[1693664225427,11.13826838,1638.9,1638.8,0.01440823]
[1693664226834,11.13826838,1638.9,1638.8,2.30306823]
[1693664229640,11.13826838,1638.9,1638.8,0.01440823]
[1693664230335,11.13826838,1638.9,1638.8,2.30306823]
[1693664231842,16.63126838,1638.9,1638.8,2.30306823]
[1693664233246,16.63126838,1638.9,1638.8,0.01440823]
[1693664236346,0.061,1638.7,1638.6,2.28885]
[1693664236546,16.69357838,1638.7,1638.5,7.35892119]
[1693664236747,21.62597838,1638.7,1638.5,7.35892119]
[1693664236937,2.86716352,1638.6,1638.5,7.35892119]
[1693664237143,9.73398352,1638.6,1638.5,6.86699]
[1693664237346,9.73398352,1638.6,1638.5,6.8808729]
[1693664238243,9.79498352,1638.6,1638.5,2.3028729]
[1693664238451,9.79498352,1638.6,1638.4,4.57838]
[1693664238452,17.57692352,1638.6,1638.4,4.57838]
[1693664238644,1.98437838,1638.5,1638.4,4.57838]
[1693664238947,8.85161838,1638.5,1638.4,4.57838]
[1693664239246,14.34461838,1638.5,1638.4,4.59173585]
[1693664240349,8.85161838,1638.5,1638.4,4.59173585]
[1693664243348,8.85161838,1638.5,1638.4,6.88095585]
[1693664246841,8.85161838,1638.5,1638.4,7.0826582]
[1693664247549,8.85161838,1638.5,1638.4,6.88095585]
[1693664247948,8.85161838,1638.5,1638.4,7.0826582]
[1693664248353,8.85161838,1638.5,1638.4,6.88095585]
[1693664264957,8.85161838,1638.5,1638.4,4.59173585]
[1693664268459,11.14069838,1638.5,1638.4,4.59173585]
[1693664269562,11.14069838,1638.5,1638.4,2.30253585]
[1693664271359,11.20169838,1638.5,1638.4,2.30257585]
[1693664271863,16.69469838,1638.5,1638.4,0.01335585]
[1693664272264,0.061,1638.4,1638.3,4.57855]
[1693664272460,9.79582352,1638.4,1638.3,6.86788]
[1693664273364,9.79582352,1638.4,1638.3,6.88083452]
[1693664276062,12.08504352,1638.4,1638.3,4.59150452]
[1693664276263,17.57804352,1638.4,1638.3,2.28926]
[1693664276564,17.57804352,1638.4,1638.3,4.57862]
[1693664279872,17.57804352,1638.4,1638.3,2.28926]
[1693664284376,18.06916271,1638.4,1638.3,2.28926]
[1693664285182,18.06916271,1638.4,1638.3,4.57862]
[1693664285483,5.06955919,1638.4,1638.3,9.35904235]
[1693664285677,5.06955919,1638.4,1638.3,7.06968235]
[1693664285977,7.35877919,1638.4,1638.3,7.06968235]
[1693664286171,7.35877919,1638.4,1638.3,7.0821711]
[1693664288283,6.86766,1638.4,1638.3,7.0821711]
[1693664289879,9.73482352,1638.4,1638.3,7.0821711]
[1693664291584,9.73482352,1638.4,1638.3,6.88046875]
[1693664292281,12.02404352,1638.4,1638.3,2.30174875]
[1693664292488,12.02404352,1638.4,1638.3,0.01248875]
[1693664292985,12.02404352,1638.4,1638.3,2.30184875]
[1693664295695,12.02404352,1638.4,1638.3,4.59120875]
[1693664299691,12.02404352,1638.4,1638.3,2.30184875]
[1693664305390,12.08504352,1638.4,1638.3,2.30184875]
[1693664308296,12.08504352,1638.4,1638.3,2.5035511]
[1693664308495,12.08504352,1638.4,1638.3,2.30184875]
[1693664312996,12.08504352,1638.4,1638.3,4.59120875]
[1693664314604,12.08504352,1638.4,1638.3,4.7929111]
[1693664314899,9.21788,1638.4,1638.3,4.7929111]
[1693664315899,12.08504352,1638.4,1638.3,4.7929111]
[1693664316106,9.21788,1638.4,1638.3,4.7929111]
[1693664316796,6.92866,1638.4,1638.3,7.0822711]
[1693664318905,9.79582352,1638.4,1638.3,7.0822711]
[1693664321607,6.92866,1638.4,1638.3,7.0822711]
[1693664323509,9.79582352,1638.4,1638.3,7.0822711]
[1693664323904,6.92866,1638.4,1638.3,7.0822711]